[Event "German Masters Frauen 2019"]
[Site "Magdeburg"]
[Date "2019.06.01"]
[Round "7.4"]
[White "Sieber, Fiona"]
[Black "Hoolt, Sarah"]
[Result "1-0"]
[ECO "C07"]
[WhiteElo "2250"]
[BlackElo "2321"]
[Annotator "ChessBase"]
[PlyCount "109"]
[EventDate "2019.05.26"]
[EventType "tourn"]
[EventCountry "GER"]
[SourceTitle "playchess.com"]
[Source "ChessBase"]
[SourceQuality "1"]
[TimeControl "40/5400+30:1800+30"]

1. e4 {[%emt 0:00:00]} e6 {[%emt 0:00:00]} 2. d4 {[%emt 0:00:00]} d5 {[%emt 0:00:00]} 3. Nd2 {[%emt 0:00:00]} c5 {[%emt 0:00:15]} 4. Ngf3 {[%emt 0:00:28]} cxd4 {[%emt 0:00:24]} 5. Nxd4 {[%emt 0:00:17]} Nc6 {[%emt 0:00:12]} 6. Bb5 {[%emt 0:00:19]} Bd7 {[%emt 0:00:13]} 7. Nxc6 {[%emt 0:00:07]} bxc6 {[%emt 0:00:11]} 8. Bd3 {[%emt 0:00:05]} Qc7 {[%emt 0:00:44]} 9. Qe2 {[%emt 0:03:06]} Ne7 {[%emt 0:00:19]} 10. Nf3 {[%emt 0:01:35]} Ng6 {[%emt 0:00:59]} 11. e5 {[%emt 0:01:17]} Be7 {[%emt 0:02:09]} 12. O-O {[%emt 0:01:12]} c5 {[%emt 0:00:10]} 13. b3 {[%emt 0:04:38]} Bc6 {[%emt 0:05:29]} 14. Re1 {[%emt 0:04:26]} Rb8 {[%emt 0:04:57]} 15. Bd2 {[%emt 0:05:34]} O-O {[%emt 0:21:37]} 16. h4 {[%emt 0:07:37]} c4 {[%emt 0:03:25]} 17. Bxg6 {[%emt 0:11:58]} fxg6 {[%emt 0:07:48]} 18. bxc4 {[%emt 0:10:02]} Bc5 {[%emt 0:01:26]} 19. Be3 {[%emt 0:03:06]} Bxe3 {[%emt 0:01:23]} 20. Qxe3 {[%emt 0:00:22]} dxc4 {[%emt 0:00:52]} 21. Nd4 {[%emt 0:05:35]} Bd5 {[%emt 0:00:17]} 22. Rab1 {[%emt 0:06:35]} Qa5 {[%emt 0:07:20]} 23. a3 {[%emt 0:01:11]} Rb6 {[%emt 0:11:46]} 24. Rxb6 {[%emt 0:03:01]} Qxb6 {[%emt 0:01:28]} 25. Rd1 {[%emt 0:01:03]} Qb2 {[%emt 0:02:50]} 26. Qh3 {[%emt 0:03:29]} Qb6 {[%emt 0:04:14]} 27. h5 {[%emt 0:05:06]} gxh5 {[%emt 0:00:07]} 28. Qxh5 {[%emt 0:00:22]} Qb8 {[%emt 0:08:05]} 29. Qg5 {[%emt 0:04:58]} h6 {[%emt 0:00:31]} 30. Qg3 {[%emt 0:01:13]} Qe8 {[%emt 0:02:01]} 31. Rb1 {[%emt 0:01:25]} Qh5 {[%emt 0:00:57]} 32. f4 {[%emt 0:02:17]} Kh7 {[%emt 0:03:43]} 33. Rf1 {[%emt 0:00:40]} Qg6 {[%emt 0:02:44]} 34. Qxg6+ {[%emt 0:01:17]} Kxg6 {[%emt 0:00:02]} 35. g4 {[%emt 0:00:22]} Kf7 {[%emt 0:01:58]} 36. f5 {[%emt 0:00:39]} Ke7 {[%emt 0:01:00]} 37. Kf2 {[%emt 0:04:25]} h5 {[%emt 0:00:57]} 38. gxh5 {[%emt 0:00:32]} exf5 {[%emt 0:00:06]} 39. Ke3 {[%emt 0:02:15]} Be4 {[%emt 0:02:08]} 40. Rg1 {[%emt 0:01:03]} Kf7 {[%emt 0:01:17]} 41. e6+ {[%emt 0:32:21]} Kg8 {[%emt 0:08:06]} 42. h6 {[%emt 0:00:00]} g6 {[%emt 0:00:17]} 43. Rxg6+ {[%emt 0:00:00]} Kh7 {[%emt 0:00:01]} 44. e7 {[%emt 0:00:00]} Re8 {[%emt 0:00:10]} 45. Re6 {[%emt 0:00:00]} c3 {[%emt 0:03:33]} 46. Nb5 {[%emt 0:00:00]} Bd5 {[%emt 0:05:55]} 47. Re5 {[%emt 0:00:00]} Bc6 {[%emt 0:00:10]} 48. Nd6 {[%emt 0:00:00]} Rb8 {[%emt 0:01:32]} 49. e8=Q {[%emt 0:00:00]} Bxe8 {[%emt 0:00:05]} 50. Rxe8 {[%emt 0:00:00]} Rb2 {[%emt 0:00:14]} 51. Kd3 {[%emt 0:00:00]} Kxh6 {[%emt 0:00:14]} 52. Kxc3 {[%emt 0:00:00]} Rb6 {[%emt 0:00:22]} 53. Nxf5+ {[%emt 0:00:00]} Kg6 {[%emt 0:00:08]} 54. Nd4 {[%emt 0:00:00]} Kf7 {[%emt 0:00:16]} 55. Re5 {[%emt 0:00:00]} 1-0